fUSD/lending_fUSD_20260416
["ID","MTS","AMOUNT","RATE_DAILY","PERIOD"]
[420602981,1776306645776,-5000.0,9.055e-05,2]
[420602982,1776306645785,-424.0,9.193e-05,3]
[420602983,1776306645794,-200.0,9.194e-05,2]
[420602984,1776306645802,-7858.81,9.225e-05,2]
[420602985,1776306645811,-150.0,9.265e-05,2]
[420602986,1776306645820,-1680.0,9.328e-05,2]
[420602987,1776306645829,-420.0,9.328e-05,2]
[420602988,1776306645839,-152.0,9.328e-05,2]
[420602989,1776306645848,-250.0,9.329e-05,2]
[420602990,1776306645857,-636.0,9.355e-05,5]
[420602991,1776306645867,-630.0,9.389e-05,5]
[420602992,1776306645876,-426.62,9.437e-05,2]
[420602993,1776306645887,-500.0,9.437e-05,2]
[420602994,1776306645896,-500.0,9.437e-05,2]
[420602995,1776306645906,-4984.288,9.438e-05,2]
[420602996,1776306645916,-250.0,9.438e-05,2]
[420602997,1776306645926,-500.0,9.492e-05,2]
[420602998,1776306645935,-500.0,9.564e-05,2]
[420602999,1776306645945,-500.68633184,9.564e-05,2]
[420603000,1776306645955,-500.645826,9.564e-05,2]
[420603002,1776306645964,-501.62578748,9.564e-05,2]
[420603003,1776306645974,-500.0,9.564e-05,2]
[420603006,1776306645984,-640.92848097,9.564e-05,2]
[420603007,1776306645994,-500.94249638,9.564e-05,2]
[420603008,1776306646003,-500.0,9.564e-05,2]
[420603009,1776306646013,-316.36460454,9.564e-05,2]
[420603010,1776306646023,-500.48925726,9.564e-05,2]
[420603011,1776306646033,-500.0,9.564e-05,2]
[420603012,1776306646043,-500.0,9.564e-05,2]
[420603013,1776306646052,-158.28069934,9.639e-05,2]
[420603014,1776306646061,-500.0,9.639e-05,2]
[420603015,1776306646070,-200.0,9.639e-05,2]
[420603016,1776306646079,-9552.16786547,9.639e-05,2]
[420603017,1776306646088,-721.12765535,9.639e-05,2]
[420603018,1776306646097,-210.97499053,9.639e-05,2]
[420603019,1776306646107,-1428.38747117,9.639e-05,2]
[420603020,1776306646115,-151.0,9.639e-05,2]
[420603021,1776306646125,-151.0,9.639e-05,2]
[420603022,1776306646134,-500.0,9.639e-05,2]
[420603023,1776306646144,-500.0,9.639e-05,2]
[420603024,1776306646154,-500.0,9.639e-05,2]
[420603025,1776306646163,-500.0,9.639e-05,2]
[420603026,1776306646172,-500.0,9.639e-05,2]
[420603027,1776306646181,-743.50770149,9.639e-05,2]
[420603028,1776306646190,-500.0,9.639e-05,2]
[420603029,1776306646199,-500.0,9.639e-05,2]
[420603030,1776306646208,-500.0,9.639e-05,2]
[420603031,1776306646218,-500.0,9.639e-05,2]
[420603032,1776306646227,-174.61919142,9.639e-05,2]
[420603033,1776306646237,-500.0,9.639e-05,2]
[420603034,1776306646246,-500.0,9.639e-05,2]
[420603035,1776306646256,-2748.65561803,9.639e-05,2]
[420603036,1776306646285,-628.43809262,9.639e-05,2]
[420603037,1776306646315,-681.16088203,9.639e-05,2]
[420603038,1776306646324,-696.55992228,9.639e-05,2]
[420603039,1776306646334,-284.321418,9.639e-05,2]
[420603040,1776306646343,-151.16334755,9.639e-05,2]
[420603041,1776306646352,-265.69489089,9.639e-05,2]
[420603042,1776306646361,-193.919847,9.639e-05,2]
[420603043,1776306646371,-193.919847,9.639e-05,2]
[420603044,1776306646380,-193.919847,9.639e-05,2]
[420603045,1776306646391,-193.919847,9.639e-05,2]
[420603046,1776306646401,-444.34531631,9.67e-05,2]
[420603054,1776306678242,500.0,8.48e-05,2]
[420603055,1776306794931,162.56,8.402e-05,2]
[420603057,1776306837710,150.0,0.00015073,30]
[420603058,1776306838055,150.0,0.00015993,30]
[420603059,1776306909991,2890.95,8.402e-05,2]
[420603060,1776306919822,150.0,0.00014957,30]
[420603061,1776306920166,150.0,0.0001587,30]
[420603065,1776307107685,4183.0,0.00016438,120]
[420603066,1776307142349,500.0,0.000165,30]
[420603067,1776307176263,627.0,0.000165,120]
[420603069,1776307264571,376.0,0.000165,120]
[420603070,1776307416572,1247.0,0.000165,120]
[420603071,1776307419595,150.0,0.00016063,30]
[420603072,1776307453711,981.0,0.00016063,120]
[420603073,1776307545203,1283.0,0.00016063,120]
[420603074,1776307588236,500.0,8.393e-05,2]
[420603075,1776307588269,500.0,8.393e-05,2]
[420603076,1776307588369,500.0,8.393e-05,2]
[420603077,1776307588417,500.0,8.393e-05,2]
[420603078,1776307588533,500.0,8.393e-05,2]
[420603079,1776307588775,500.0,8.393e-05,2]
[420603080,1776307588930,500.0,8.393e-05,2]
[420603081,1776307589291,500.0,8.393e-05,2]
[420603082,1776307589476,225.68425458,8.393e-05,2]
[420603083,1776307611873,500.0,8.393e-05,2]
[420603084,1776307612334,500.0,8.393e-05,2]
[420603085,1776307612499,500.0,8.393e-05,2]
[420603086,1776307612666,500.0,8.393e-05,2]
[420603087,1776307612822,500.0,8.393e-05,2]
[420603088,1776307612978,500.0,8.393e-05,2]
[420603089,1776307613178,500.0,8.393e-05,2]
[420603090,1776307613375,500.0,8.393e-05,2]
[420603091,1776307613527,307.33888934,8.393e-05,2]
[420603092,1776307613687,150.0,8.393e-05,2]
[420603093,1776307634999,1057.0,8.393e-05,120]
[420603094,1776307635452,1057.0,9.393e-05,120]
[420603095,1776307636770,1057.0,0.00010393,120]
[420603096,1776307638058,1057.0,0.00011393,120]
[420603097,1776307639350,1057.0,0.00012393,120]
[420603098,1776307640697,1057.0,0.00013393,120]
[420603099,1776307642074,1057.0,0.00014393,120]
[420603100,1776307643367,1057.0,0.00014197,30]
[420603101,1776307647522,1057.0,0.00015197,30]
[420603102,1776307647861,1057.0,0.00016197,30]
[420603103,1776307682912,5000.01,8.38e-05,2]
[420603104,1776307682940,5774.32574542,8.38e-05,2]
[420603105,1776307682968,10000.01,8.38e-05,2]
[420603106,1776307682994,10000.01,8.38e-05,2]
[420603107,1776307683021,10000.01,8.38e-05,2]
[420603108,1776307683047,10000.01,8.38e-05,2]
[420603109,1776307683075,10000.01,8.38e-05,2]
[420603110,1776307683103,10000.01,8.38e-05,2]
[420603111,1776307683129,10000.01,8.38e-05,2]
[420603112,1776307683155,1147.10595458,8.38e-05,2]
[420603113,1776307726313,634.0,8.38e-05,120]
[420603114,1776307726618,634.0,9.38e-05,120]
[420603115,1776307726952,634.0,0.0001038,120]
[420603116,1776307727424,634.0,0.0001138,120]
[420603117,1776307728497,634.0,0.0001238,120]
[420603118,1776307729829,634.0,0.0001338,120]
[420603119,1776307731516,634.0,0.0001438,120]
[420603120,1776307732812,634.0,0.0001419,30]
[420603121,1776307734099,634.0,0.0001519,30]
[420603122,1776307735427,634.0,0.0001619,30]
[420603129,1776307802020,1440.0,0.0001619,120]
[420603141,1776307832299,-300.0,8.469e-05,2]
[420603142,1776307832309,-117.51182976,8.469e-05,2]
[420603143,1776307832320,-142.48817024,8.469e-05,2]
[420603144,1776307832330,-300.0,8.469e-05,2]
[420603145,1776307832340,-529.23336563,8.469e-05,2]
[420603146,1776307832352,-385.00293256,8.469e-05,2]
[420603147,1776307832364,-285.76370181,8.469e-05,2]
[420603148,1776307832374,-237.72077286,8.469e-05,2]
[420603149,1776307832386,-62.27922714,8.469e-05,2]
[420603150,1776307832396,-241.60267256,8.47e-05,2]
[420603151,1776307832422,-90.69592215,8.47e-05,2]
[420603152,1776307832433,-6905.92068253,8.47e-05,2]
[420603153,1776307832443,-196.404704,8.478e-05,2]
[420603154,1776307832453,-90.00156983,8.478e-05,2]
[420603155,1776307832465,-60.99843017,8.478e-05,2]
[420603156,1776307832474,-2820.536,8.479e-05,2]
[420603157,1776307832484,-232.336,8.479e-05,2]
[420603158,1776307832494,-86.54521852,8.479e-05,2]
[420603159,1776307832506,-63.45478148,8.479e-05,2]
[420603160,1776307832515,-582.70267164,8.48e-05,2]
[420603161,1776307832527,-24303.52098848,8.48e-05,2]
[420603162,1776307832537,-500.0,8.48e-05,2]
[420603163,1776307832547,-460.6,8.48e-05,2]
[420603164,1776307832556,-500.0,8.506e-05,2]
[420603165,1776307832566,-150.0,8.506e-05,2]
[420603166,1776307832576,-154.36867769,8.506e-05,2]
[420603167,1776307832586,-500.0,8.506e-05,2]
[420603168,1776307832595,-500.0,8.506e-05,2]
[420603169,1776307832606,-500.0,8.506e-05,2]
[420603170,1776307832615,-500.0,8.506e-05,2]
[420603171,1776307832625,-500.0,8.506e-05,2]
[420603172,1776307832635,-500.0,8.506e-05,2]
[420603173,1776307832644,-500.0,8.506e-05,2]
[420603174,1776307832654,-500.0,8.506e-05,2]
[420603175,1776307832663,-500.0,8.506e-05,2]
[420603176,1776307832673,-636.99406393,8.506e-05,2]
[420603177,1776307832683,-150.0,8.506e-05,2]
[420603178,1776307832693,-500.0,8.506e-05,2]
[420603179,1776307832703,-151.96331003,8.531e-05,2]
[420603180,1776307832712,-150.0,8.531e-05,2]
[420603181,1776307832722,-150.0,8.531e-05,2]
[420603182,1776307832731,-150.0,8.531e-05,2]
[420603183,1776307832740,-164.61255082,8.531e-05,2]
[420603184,1776307832750,-286.45920067,8.531e-05,2]
[420603185,1776307832760,-500.0,8.531e-05,2]
[420603186,1776307832769,-500.0,8.531e-05,2]
[420603187,1776307832778,-500.0,8.531e-05,2]
[420603188,1776307832788,-624.96068047,8.531e-05,2]
[420603189,1776307832798,-150.0,8.531e-05,2]
[420603190,1776307832807,-150.0,8.531e-05,2]
[420603191,1776307832817,-150.0,8.531e-05,2]
[420603192,1776307832826,-262.66144291,8.531e-05,2]
[420603193,1776307832835,-269.14735528,8.531e-05,2]
[420603194,1776307832845,-500.0,8.531e-05,2]
[420603195,1776307832854,-500.0,8.531e-05,2]
[420603196,1776307832863,-150.0,8.531e-05,2]
[420603197,1776307832872,-168.8570491,8.531e-05,2]
[420603198,1776307832882,-224.40797371,8.531e-05,2]
[420603199,1776307832891,-150.0,8.531e-05,2]
[420603200,1776307832901,-150.0,8.531e-05,2]
[420603201,1776307832911,-207.44230415,8.531e-05,2]
[420603202,1776307832920,-500.0,8.531e-05,2]
[420603203,1776307832929,-500.0,8.531e-05,2]
[420603204,1776307832939,-539.13798207,8.531e-05,2]
[420603205,1776307832949,-500.0,8.531e-05,2]
[420603206,1776307832959,-231.04926696,8.531e-05,2]
[420603207,1776307832968,-150.0,8.531e-05,2]
[420603208,1776307832978,-150.17997214,8.531e-05,2]
[420603209,1776307832987,-151.04543837,8.531e-05,2]
[420603210,1776307832996,-460.6,8.754e-05,2]
[420603211,1776307833006,-244.04848303,8.78e-05,2]
[420603212,1776307833016,-5109.08874397,8.805e-05,2]
[420603213,1776307833026,-336.97,8.984e-05,2]
[420603214,1776307833035,-200.0,9e-05,3]
[420603215,1776307833044,-460.6,9.028e-05,2]
[420603216,1776307833054,-500.0,9.041e-05,2]
[420603217,1776307833063,-155.493,9.053e-05,2]
[420603218,1776307833073,-500.0,9.054e-05,2]
[420603219,1776307833081,-1350.25,9.059e-05,2]
[420603220,1776307833091,-500.0,9.128e-05,2]
[420603221,1776307833100,-500.0,9.128e-05,2]
[420603222,1776307833109,-500.0,9.128e-05,2]
[420603223,1776307833119,-160.04311138,9.128e-05,2]
[420603224,1776307833128,-160.05196007,9.128e-05,2]
[420603225,1776307833137,-500.0,9.128e-05,2]
[420603226,1776307833147,-500.0,9.128e-05,2]
[420603227,1776307833157,-500.53322406,9.128e-05,2]
[420603228,1776307833167,-500.0,9.128e-05,2]
[420603229,1776307833177,-500.43587122,9.128e-05,2]
[420603230,1776307833187,-2000.0,9.28e-05,2]
[420603231,1776307833197,-10000.39,9.286e-05,2]
[420603232,1776307833207,-500.0,9.29e-05,2]
[420603233,1776307833216,-460.6,9.302e-05,2]
[420603234,1776307833226,-250.0,9.316e-05,2]
[420603235,1776307833236,-250.0,9.316e-05,2]
[420603236,1776307833246,-314.0,9.316e-05,2]
[420603237,1776307833256,-1680.0,9.316e-05,2]
[420603238,1776307833265,-301.0,9.316e-05,2]
[420603239,1776307833275,-255.0,9.327e-05,2]
[420603240,1776307833286,-500.0,9.328e-05,2]
[420603241,1776307833295,-500.0,9.33e-05,2]
[420603242,1776307833305,-500.75597371,9.33e-05,2]
[420603243,1776307833317,-500.0,9.33e-05,2]
[420603244,1776307833327,-263.09,9.342e-05,2]
[420603245,1776307833337,-1548.8528359,9.491e-05,2]
[420603246,1776307833351,-8003.31502957,9.491e-05,2]
[420603247,1776307833361,-696.55992228,9.491e-05,2]
[420603248,1776307833371,-211.81244639,9.491e-05,2]
[420603249,1776307833380,-500.0,9.491e-05,2]
[420603250,1776307833390,-681.16088203,9.491e-05,2]
[420603251,1776307833399,-500.0,9.491e-05,2]
[420603252,1776307833409,-500.0,9.491e-05,2]
[420603253,1776307833854,-500.0,9.491e-05,2]
[420603254,1776307833864,-328.23334478,9.491e-05,2]
[420603255,1776307833873,-500.0,9.491e-05,2]
[420603256,1776307833883,-500.0,9.491e-05,2]
[420603257,1776307833892,-729.26839923,9.491e-05,2]
[420603258,1776307833902,-500.0,9.491e-05,2]
[420603259,1776307833912,-500.0,9.491e-05,2]
[420603260,1776307833921,-500.0,9.491e-05,2]
[420603261,1776307833931,-500.0,9.491e-05,2]
[420603262,1776307833941,-500.0,9.491e-05,2]
[420603263,1776307833950,-500.0,9.491e-05,2]
[420603264,1776307833959,-151.16334755,9.491e-05,2]
[420603265,1776307833969,-265.69489089,9.491e-05,2]
[420603266,1776307833978,-284.321418,9.491e-05,2]
[420603267,1776307833988,-9905.5980765,9.546e-05,2]
[420603268,1776307833997,-500.0,9.546e-05,2]
[420603269,1776307834007,-460.62,9.576e-05,2]
[420603270,1776307834016,-413.9376586,9.596e-05,2]
[420603271,1776307834026,-915.0048415,9.596e-05,2]
[420603272,1776307834035,-3256.6615399,9.596e-05,2]
[420603273,1776307834045,-5429.5599644,9.596e-05,2]
[420603274,1776307834054,-1517.93069193,9.601e-05,2]
[420603275,1776307834066,-3858.23918352,9.601e-05,2]
[420603276,1776307834075,-500.0,9.601e-05,2]
[420603277,1776307834085,-500.0,9.602e-05,2]
[420603278,1776307834094,-578.20924308,9.653e-05,2]
[420603279,1776307834104,-151.0,9.653e-05,2]
[420603280,1776307834113,-500.0,9.656e-05,2]
[420603281,1776307834123,-9999.99,9.67e-05,2]
[420603282,1776307834132,-2060.39,9.67e-05,2]
[420603283,1776307834142,-1000.0,9.67e-05,2]
[420603284,1776307834151,-1000.0,9.67e-05,2]
[420603285,1776307834161,-1000.0,9.67e-05,2]
[420603286,1776307834171,-1013.66578751,9.67e-05,2]
[420603287,1776307834181,-500.0,9.676e-05,2]
[420603288,1776307834191,-210.60663321,9.676e-05,2]
[420603289,1776307834200,-1000.0,9.676e-05,2]
[420603290,1776307834210,-1003.63062943,9.676e-05,2]
[420603291,1776307834219,-500.0,9.676e-05,2]
[420603292,1776307834228,-150.0,9.7e-05,2]
[420603293,1776307834238,-151.0,9.708e-05,2]
[420603294,1776307834248,-500.0,9.711e-05,2]
[420603295,1776307834257,-151.0,9.763e-05,2]
[420603296,1776307834267,-653.33015092,9.765e-05,2]
[420603297,1776307834276,-500.0,9.766e-05,2]
[420603298,1776307834286,-151.0,9.818e-05,2]
[420603299,1776307834295,-207.02,9.82e-05,2]
[420603300,1776307834305,-500.0,9.821e-05,2]
[420603301,1776307834314,-615.32089662,9.837e-05,2]
[420603302,1776307834324,-151.0,9.873e-05,2]
[420603303,1776307834333,-500.0,9.876e-05,2]
[420603304,1776307834343,-500.0,9.876e-05,2]
[420603305,1776307834353,-502.30027553,9.878e-05,2]
[420603306,1776307834362,-1000.0,9.878e-05,2]
[420603307,1776307834373,-151.0,9.928e-05,2]
[420603308,1776307834382,-500.0,9.931e-05,2]
[420603309,1776307834392,-151.0,9.983e-05,2]
[420603310,1776307834402,-500.0,9.986e-05,2]
[420603311,1776307834411,-278.90469431,0.0001,2]
[420603312,1776307834421,-212.83844332,0.0001,2]
[420603313,1776307834430,-347.04312078,0.0001,2]
[420603314,1776307834439,-200.0,0.0001,2]
[420603315,1776307834449,-298.57995616,0.0001,2]
[420603316,1776307834458,-151.0,0.0001,2]
[420603317,1776307834468,-151.0,0.0001,2]
[420603318,1776307834477,-151.0,0.0001,2]
[420603319,1776307834487,-151.0,0.0001,2]
[420603320,1776307834496,-151.0,0.0001,2]
[420603321,1776307834506,-151.0,0.0001,2]
[420603322,1776307834516,-151.0,0.0001,2]
[420603323,1776307834525,-500.0,0.0001,2]
[420603324,1776307834535,-151.0,0.0001,2]
[420603325,1776307834545,-500.0,0.0001,2]
[420603326,1776307834556,-151.0,0.0001,2]
[420603327,1776307834565,-500.0,0.0001,2]
[420603328,1776307834575,-500.0,0.0001,2]
[420603329,1776307834585,-151.0,0.0001,2]
[420603330,1776307834594,-500.0,0.0001,2]
[420603331,1776307834604,-151.0,0.0001,2]
[420603332,1776307834614,-500.0,0.0001,2]
[420603333,1776307834624,-500.0,0.0001,2]
[420603334,1776307834634,-500.0,0.0001,2]
[420603335,1776307834644,-500.0,0.0001,2]
[420603336,1776307834655,-500.0,0.0001,2]
[420603337,1776307834664,-500.0,0.0001,2]
[420603338,1776307834674,-1600.0,0.00010026,2]
[420603339,1776307834684,-151.0,0.00010038,2]
[420603340,1776307834694,-151.0,0.00010093,2]
[420603341,1776307834703,-268.2965335,0.00010148,2]
[420603342,1776307834713,-500.0,0.0001015,2]
[420603343,1776307834722,-500.0,0.00010224,2]
[420603344,1776307834732,-1897.0,0.00010247,2]
[420603345,1776307834742,-195.0,0.0001026,2]
[420603346,1776307834752,-463.56,0.00010295,2]
[420603347,1776307834761,-500.0,0.00010424,2]
[420603348,1776307834771,-2000.0,0.0001044,2]
[420603349,1776307834780,-201.63233013,0.00010548,2]
[420603350,1776307834789,-500.0,0.00010698,2]
[420603351,1776307834798,-5429.5599644,0.00010715,2]
[420603352,1776307834808,-153.23295601,0.000108,2]
[420603353,1776307834818,-155.37473709,0.000108,2]
[420603354,1776307834827,-151.17276315,0.000108,2]
[420603355,1776307834838,-154.00632815,0.000108,2]
[420603356,1776307834847,-202.6843081,0.000108,2]
[420603357,1776307834857,-150.0,0.000108,2]
[420603358,1776307834866,-151.69617347,0.000108,2]
[420603359,1776307834875,-150.0,0.00010933,2]
[420603360,1776307834885,-517.36826899,0.00010958,2]
[420603361,1776307834895,-501.24150087,0.00010959,2]
[420603362,1776307834905,-150.0,0.00010959,2]
[420603363,1776307834914,-500.0,0.00010972,2]
[420603364,1776307834923,-1284.419038,0.00010976,2]
[420603365,1776307834933,-191.3156,0.00011,2]
[420603366,1776307834942,-455.6,0.00011008,2]
[420603367,1776307834951,-150.0,0.00011067,2]
[420603368,1776307834961,-611.31433667,0.00011099,2]
[420603369,1776307834970,-611.31433664,0.00011099,2]
[420603370,1776307834979,-611.31433664,0.00011099,2]
[420603371,1776307834989,-611.31433664,0.00011099,2]
[420603372,1776307834998,-400.0,0.000111,4]
[420603373,1776307835008,-3890.199671,0.0001114,2]
[420603374,1776307835017,-1600.0,0.00011141,2]
[420603375,1776307835027,-242.62599,0.0001117,2]
[420603376,1776307835036,-200.0,0.0001119,2]
[420603377,1776307835046,-250.0,0.0001119,2]
[420603378,1776307835055,-2000.0,0.00011191,2]
[420603379,1776307835065,-200.0,0.00011191,2]
[420603380,1776307835074,-200.0,0.00011191,2]
[420603381,1776307835084,-5135.0,0.000112,2]
[420603382,1776307835093,-150.0,0.000112,2]
[420603383,1776307835102,-700.0,0.000112,4]
[420603384,1776307835112,-321.39695609,0.00011246,2]
[420603385,1776307835121,-242.62599,0.0001127,2]
[420603386,1776307835130,-154.50003247,0.00011279,2]
[420603387,1776307835139,-453.23,0.00011287,2]
[420603388,1776307835148,-200.0,0.00011295,2]
[420603389,1776307835157,-900.0,0.000113,4]
[420603390,1776307835167,-150.0,0.00011333,2]
[420603391,1776307835176,-420.0,0.00011367,5]
[420603392,1776307835186,-1049.57,0.00011367,2]
[420603393,1776307835195,-6028.0,0.00011367,2]
[420603394,1776307835204,-3777.0,0.00011367,2]
[420603395,1776307835214,-242.62599,0.0001137,2]
[420603396,1776307835223,-563.723489,0.000114,2]
[420603397,1776307835232,-563.723489,0.000114,2]
[420603398,1776307835242,-563.723489,0.000114,2]
[420603399,1776307835251,-563.723489,0.000114,2]
[420603400,1776307835260,-1100.0,0.000114,4]
[420603401,1776307835270,-150.0,0.00011467,2]
[420603402,1776307835279,-242.626,0.0001147,2]
[420603403,1776307835289,-200.0,0.000115,4]
[420603404,1776307835298,-5532.0,0.000115,3]
[420603405,1776307835307,-1285.59,0.00011507,2]
[420603406,1776307835317,-135.29243285,0.00011568,2]
[420603407,1776307835330,-15.50767044,0.00011568,2]
[420603408,1776307835339,-242.62599,0.0001157,2]
[420603409,1776307835348,-150.0,0.000116,2]
[420603410,1776307835358,-200.0,0.000116,4]
[420603411,1776307835367,-646.28442633,0.000116,2]
[420603412,1776307835388,-1353.71557367,0.000116,2]
[420603413,1776307835398,-1000.0,0.00011663,2]
[420603414,1776307835407,-242.62599,0.0001167,2]
[420603415,1776307835421,-200.0,0.000117,4]
[420603416,1776307835432,-273.0,0.00011705,2]
[420603417,1776307835442,-217.0,0.00011705,2]
[420603418,1776307835451,-150.0,0.00011724,2]
[420603419,1776307835461,-150.0,0.00011733,2]
[420603420,1776307835470,-150.0,0.00011739,2]
[420603421,1776307835480,-1000.0,0.00011759,2]
[420603422,1776307835489,-150.0,0.00011776,2]
[420603423,1776307835499,-189.17417349,0.00011797,2]
[420603424,1776307835508,-1000.0,0.000118,3]
[420603425,1776307835517,-200.0,0.000118,4]
[420603426,1776307835527,-1811.53827469,0.000118,2]
[420603427,1776307835536,-1000.0,0.00011801,2]
[420603428,1776307835545,-333.0,0.00011833,5]
[420603429,1776307835555,-152.719379,0.00011833,2]
[420603430,1776307835565,-151.274718,0.00011833,2]
[420603431,1776307835574,-193.919847,0.00011833,2]
[420603432,1776307835584,-193.919847,0.00011833,2]
[420603433,1776307835593,-193.919847,0.00011833,2]
[420603434,1776307835602,-193.919847,0.00011833,2]
[420603435,1776307835611,-222.09846949,0.00011833,2]
[420603436,1776307835632,-1491.24069185,0.00011833,2]
[420603437,1776307836466,152.0,9.484e-05,30]
[420603438,1776307837312,152.0,9.583e-05,30]
[420603440,1776307841366,-152.0,9.481e-05,7]
[420603441,1776307841376,-152.0,9.58e-05,7]
[420603442,1776307841385,-5.14823384,0.00011099,2]
[420603443,1776307841397,-606.1661028,0.00011099,2]
[420603444,1776307841407,-278.9046943,0.00011724,2]
[420603445,1776307841416,-1811.53827467,0.00011814,2]
[420603446,1776307841426,-3716.22080306,0.00011833,2]
[420603447,1776307841435,-150.0,0.00011848,2]
[420603448,1776307841445,-150.0,0.00011867,2]
[420603449,1776307841455,-150.0,0.00011893,2]
[420603450,1776307841464,-1000.0,0.00011897,2]
[420603451,1776307841474,-150.0,0.00011898,2]
[420603452,1776307841484,-3359.66699041,0.000119,2]
[420603453,1776307841526,-4688.52311579,0.000119,2]
[420603454,1776307841578,-2250.26408239,0.000119,2]
[420603455,1776307841601,-6866.44733709,0.000119,2]
[420603456,1776307841630,-940.10218564,0.00011829,2]
[420603473,1776307844004,829.0,0.0001619,120]
[420603475,1776307846355,-611.31433664,0.00011099,2]
[420603476,1776307846364,-611.31433664,0.00011123,2]
[420603477,1776307846373,-416.0,0.00011367,2]
[420603478,1776307846382,-871.43608903,0.00011829,2]
[420603479,1776307846392,-2227.43950633,0.000119,2]
[420603480,1776307846402,-737.54865217,0.000119,2]
[420603481,1776307846414,-12664.44968442,0.000119,2]
[420603482,1776307846423,-862.21520282,0.000119,2]
[420603483,1776307846432,-563.723489,0.000119,2]
[420603484,1776307846443,-563.723489,0.000119,2]
[420603485,1776307846452,-563.723489,0.000119,2]
[420603486,1776307846462,-563.723489,0.000119,2]
[420603487,1776307846472,-5532.0,0.000119,5]
[420603488,1776307846483,-691.0,0.000119,4]
[420603489,1776307846492,-13719.09779264,0.000119,2]
[420603490,1776307846503,-2509.92691346,0.000119,2]
[420603491,1776307846513,-8392.02061994,0.000119,2]
[420603492,1776307846522,-2031.08618089,0.000119,2]
[420603493,1776307846532,-4663.35501889,0.000119,2]
[420603494,1776307846541,-1000.0,0.00011904,2]
[420603495,1776307846550,-1000.0,0.00011921,2]
[420603496,1776307846560,-150.0,0.00011953,2]
[420603497,1776307846570,-150.0,0.0001196,2]
[420603498,1776307846579,-14217.0,0.00011973,2]
[420603499,1776307846588,-1000.0,0.00011984,2]
[420603500,1776307846597,-159.83576059,0.0001199,2]
[420603501,1776307846607,-159.83576059,0.0001199,2]
[420603502,1776307846616,-151.09292508,0.00011994,2]
[420603503,1776307846625,-250.0,0.00011994,2]
[420603504,1776307846635,-23007.02114176,0.00012,2]
[420603505,1776307846666,-5045.47876192,0.00012,2]
[420603506,1776307846677,-8339.91972622,0.00012,2]
[420603511,1776307846843,-533.77710246,0.00012,2]
[420603512,1776307846855,-2052.95203313,0.00012,2]
[420603513,1776307846885,-708.77,0.00012,2]
[420603514,1776307866122,5000.01,8.38e-05,2]
[420603515,1776307866148,8852.90404542,8.38e-05,2]
[420603516,1776307866174,10000.01,8.38e-05,2]
[420603517,1776307866199,10000.01,8.38e-05,2]
[420603518,1776307866224,10000.01,8.38e-05,2]
[420603519,1776307866249,10000.01,8.38e-05,2]
[420603520,1776307866275,10000.01,8.38e-05,2]
[420603521,1776307866302,10000.01,8.38e-05,2]
[420603522,1776307866328,10000.01,8.38e-05,2]
[420603523,1776307866354,10000.01,8.38e-05,2]
[420603524,1776307866381,10000.01,8.38e-05,2]
[420603525,1776307872031,-851.39506987,8.38e-05,2]
[420603526,1776307874623,-268.73499931,8.38e-05,2]
[420603527,1776307878938,-300.12931329,8.38e-05,2]
[420603528,1776307880672,-500.0,8.38e-05,2]
[420603529,1776307882201,-225.87068671,8.38e-05,2]
[420603530,1776307883808,-300.0,8.38e-05,2]
[420603531,1776307886916,-260.0,8.38e-05,2]
[420603532,1776307891058,-1200.0,8.38e-05,2]
[420603533,1776307891633,1129.0,8.38e-05,120]
[420603534,1776307891957,185.869,8.212e-05,2]